fUST/lending_fUST_20260118
["ID","MTS","AMOUNT","RATE_DAILY","PERIOD"]
[402373149,1768668632577,-201.22022786,9.863e-05,2]
[402373151,1768668632586,-1200.0,9.998e-05,2]
[402373153,1768668632596,-300.0,9.999e-05,2]
[402373155,1768668632606,-300.0,9.999e-05,2]
[402373157,1768668632616,-300.0,9.999e-05,2]
[402373159,1768668632627,-300.0,9.999e-05,2]
[402373161,1768668632636,-5675.754368,0.0001,2]
[402373164,1768668632646,-165.35,0.00010102,2]
[402373166,1768668632656,-50000.0,0.00011862,2]
[402373168,1768668632665,-237.43986887,0.00011863,2]
[402373170,1768668632679,-234.521,0.00012716,2]
[402373172,1768668632688,-500.0,0.00012718,2]
[402373174,1768668632699,-500.0,0.00012718,2]
[402373176,1768668632709,-649.61391478,0.00012718,2]
[402373178,1768668632719,-500.0,0.00012718,2]
[402373180,1768668632729,-500.0,0.00012718,2]
[402373182,1768668632739,-500.0,0.00012718,2]
[402373184,1768668632749,-181.68617779,0.00012718,2]
[402373186,1768668632759,-500.0,0.00012718,2]
[402373188,1768668632769,-500.0,0.00012718,2]
[402373190,1768668632780,-500.0,0.00012718,2]
[402373192,1768668632789,-500.0,0.00012718,2]
[402373194,1768668632799,-318.75224675,0.00012718,2]
[402373196,1768668632809,-500.0,0.00012718,2]
[402373198,1768668632819,-500.0,0.00012718,2]
[402373200,1768668632829,-581.65593798,0.00012718,2]
[402373202,1768668632839,-500.0,0.00012718,2]
[402373204,1768668632849,-200.0,0.00012718,2]
[402373207,1768668632859,-500.0,0.00012718,2]
[402373209,1768668632869,-500.0,0.00012718,2]
[402373211,1768668632879,-500.0,0.00012718,2]
[402373213,1768668632888,-500.0,0.00012718,2]
[402373215,1768668632898,-500.0,0.00012718,2]
[402373217,1768668632908,-500.0,0.00012718,2]
[402373219,1768668632918,-500.0,0.00012718,2]
[402373221,1768668632928,-500.0,0.00012718,2]
[402373223,1768668632938,-500.0,0.00012718,2]
[402373225,1768668632947,-649.99999999,0.00012718,2]
[402373227,1768668632957,-521.60737412,0.00012718,2]
[402373228,1768668632967,-288.36349589,0.00012718,2]
[402373230,1768668632977,-297.069592,0.00013699,2]
[402373233,1768668632987,-273.65950989,0.00013863,2]
[402373235,1768668632997,-202.0,0.00015,2]
[402373236,1768668633006,-393.42090435,0.0001578,2]
[402373238,1768668633016,-151.0,0.0001578,2]
[402373240,1768668633025,-192.96098043,0.0001578,2]
[402373242,1768668633036,-445.202766,0.0001578,2]
[402373244,1768668633046,-151.0,0.0001578,2]
[402373246,1768668633057,-151.0,0.0001578,2]
[402373249,1768668633067,-151.0,0.0001578,2]
[402373251,1768668633077,-151.0,0.0001578,2]
[402373253,1768668633087,-151.0,0.0001578,2]
[402373255,1768668633097,-151.0,0.0001578,2]
[402373257,1768668633107,-2150.738,0.0001578,2]
[402373259,1768668633117,-151.0,0.0001578,2]
[402373261,1768668633127,-254.35522609,0.0001578,2]
[402373263,1768668633137,-162.380719,0.0001578,2]
[402373265,1768668633147,-168.3888056,0.0001578,2]
[402373266,1768668633156,-174.61919141,0.0001578,2]
[402373268,1768668633165,-30000.0,0.0001578,2]
[402373270,1768668633174,-181.08010149,0.0001578,2]
[402373272,1768668633183,-187.78006525,0.0001578,2]
[402373274,1768668633192,-194.72792766,0.0001578,2]
[402373276,1768668633201,-201.93286099,0.0001578,2]
[402373278,1768668633213,-209.40437684,0.0001578,2]
[402373280,1768668633223,-217.15233878,0.0001578,2]
[402373282,1768668633232,-225.18697532,0.0001578,2]
[402373284,1768668633242,-233.51889341,0.0001578,2]
[402373286,1768668633251,-242.15909246,0.0001578,2]
[402373288,1768668633262,-251.11897888,0.0001578,2]
[402373290,1768668633272,-260.4103811,0.0001578,2]
[402373292,1768668633283,-270.0455652,0.0001578,2]
[402373294,1768668633293,-280.03725112,0.0001578,2]
[402373296,1768668633303,-309.8791509,0.00015863,2]
[402373297,1768668633312,-153.0,0.0001589,2]
[402373298,1768668633322,-1041.66666667,0.00015991,2]
[402373299,1768668633332,-6885.10521409,0.00016,2]
[402373357,1768668638628,-290.39862941,0.0001578,2]
[402373358,1768668638638,-301.1433787,0.0001578,2]
[402373359,1768668638648,-1114.89478591,0.00016,2]
[402373360,1768668638658,-500.0,0.00016,2]
[402373362,1768668638667,-1031.87468022,0.00016,2]
[402373364,1768668638676,-1263.49040181,0.00016326,2]
[402373367,1768668638701,-1374.81438009,0.00016326,2]
[402373370,1768668638712,-435.9468642,0.00016326,2]
[402373372,1768668638735,-8688.39745366,0.00016326,2]
[402373374,1768668638746,-3420.67279896,0.00016326,2]
[402373376,1768668638759,-3522.03631563,0.00016326,2]
[402373839,1768668643799,-1632.63,0.00016326,2]
[402373841,1768668643811,-355.14710109,0.00016326,2]
[402374178,1768668647366,-1481.36749738,0.00016326,2]
[402374180,1768668647378,-453.0,0.00016326,2]
[402375548,1768669482729,-1000.0,9.963e-05,2]
[402375549,1768669484381,-1000.0,9.963e-05,2]
[402375550,1768669486059,-1000.0,9.963e-05,2]
[402375551,1768669487028,-1000.0,9.963e-05,2]
[402375552,1768669488053,-39.3973762,9.963e-05,2]
[402375553,1768669500960,-267.69981594,0.00010128,2]
[402375554,1768669500980,-207.69295594,0.00010194,2]
[402375555,1768669518027,-243.0,0.00010294,2]
[402375556,1768669518047,-564.0,0.00010295,2]
[402375557,1768669518066,-193.0,0.00010397,2]
[402375558,1768669519566,-107.0,0.00010397,2]
[402375559,1768669519587,-300.0,0.00010397,2]
[402375560,1768669519606,-300.0,0.00010397,2]
[402375561,1768669519628,-293.0,0.00010397,2]
[402375562,1768669520935,-907.0,0.00010397,2]
[402375563,1768669520959,-93.0,0.00010397,2]
[402375564,1768669522171,-407.0,0.00010397,2]
[402375565,1768669522193,-500.0,0.00010397,2]
[402375566,1768669522216,-93.0,0.00010397,2]
[402375567,1768669523970,-407.0,0.00010397,2]
[402375568,1768669523993,-500.0,0.00010397,2]
[402375569,1768669524017,-93.0,0.00010397,2]
[402375570,1768669536601,-407.0,0.00010397,2]
[402375571,1768669536623,-78.21,0.00010397,2]
[402375572,1768669620673,-1000.0,9.399e-05,2]
[402375573,1768669622091,-1000.0,9.399e-05,2]
[402375574,1768669623504,-1000.0,9.399e-05,2]
[402375575,1768669624920,-1000.0,9.399e-05,2]
[402375576,1768669631407,-776.1897694,9.399e-05,2]
[402375577,1768669695000,-155.37,9.676e-05,2]
[402375578,1768669695021,-262.34581962,9.9e-05,2]
[402375579,1768669695042,-82.28418038,0.00010022,2]
[402375580,1768669719668,-466.72059682,9.922e-05,2]
[402375581,1768669719690,-533.27940318,0.0001,2]
[402375582,1768669720963,-1000.0,0.0001,2]
[402375583,1768669722059,-1000.0,0.0001,2]
[402375584,1768669722979,-389.94165594,0.0001,2]
[402375585,1768669723002,-92.50581962,0.00010022,2]
[402375586,1768669723023,-300.0,0.00010124,2]
[402375587,1768669723045,-217.55252444,0.00010124,2]
[402375588,1768669724115,-1000.0,9.922e-05,2]
[402375589,1768669725104,-1000.0,9.922e-05,2]
[402375590,1768669726215,-1000.0,9.922e-05,2]
[402375591,1768669727280,-1000.0,9.922e-05,2]
[402375592,1768669728342,-1000.0,9.922e-05,2]
[402375593,1768669729355,-282.44747556,0.00010124,2]
[402375594,1768669729375,-197.19915157,0.00010124,2]
[402375595,1768669729396,-500.0,0.00010124,2]
[402375596,1768669729415,-20.35337287,0.00010124,2]
[402375597,1768669730552,-479.64662713,0.00010124,2]
[402375598,1768669730573,-520.35337287,0.00010124,2]
[402375624,1768669803764,-535.0,0.0002,120]
[402375625,1768669803834,-331.0,0.00020351,120]
[402375626,1768669803898,-3570.18088942,0.00021,120]
[402375627,1768669803946,-331.0,0.00021369,120]
[402375628,1768669803989,-644.0,0.0002148,120]
[402375629,1768669804019,-386.0,0.0002148,120]
[402375630,1768669804050,-1073.0,0.00021482,120]
[402375631,1768669804124,-930.63359926,0.00022,120]
[402375632,1768669804154,-163.746208,0.0002208,120]
[402375633,1768669804198,-331.0,0.00022437,120]
[402375634,1768669804243,-644.0,0.00022554,120]
[402375635,1768669804275,-386.0,0.00022554,120]
[402375636,1768669804571,-1073.0,0.00022556,120]
[402375637,1768669804602,-165.0,0.0002261,120]
[402375638,1768669804635,-166.0,0.0002261,120]
[402375639,1768669804665,-1478.0,0.00022614,120]
[402375640,1768669804694,-184.0,0.00022614,120]
[402375641,1768669804725,-247.06521874,0.00022719,120]
[402375642,1768669804769,-212.25817621,0.00023251,120]
[402375643,1768669804798,-180.869233,0.00023251,120]
[402375644,1768669804827,-220.64622585,0.00023251,120]
[402375645,1768669804857,-331.0,0.00023559,120]
[402375646,1768669804888,-644.0,0.00023682,120]
[402375647,1768669804919,-386.0,0.00023682,120]
[402375648,1768669804948,-1073.0,0.00023684,120]
[402375649,1768669804978,-165.0,0.00023741,120]
[402375650,1768669805007,-166.0,0.00023741,120]
[402375651,1768669805037,-1478.0,0.00023745,120]
[402375652,1768669805064,-184.0,0.00023745,120]
[402375653,1768669805095,-400.0,0.00024,120]
[402375654,1768669805126,-166.0,0.00024493,120]
[402375655,1768669805156,-1021.0,0.00024652,120]
[402375656,1768669805190,-612.0,0.00024655,120]
[402375657,1768669805222,-367.0,0.00024656,120]
[402375658,1768669805251,-221.0,0.00024656,120]
[402375659,1768669805282,-200.0,0.00024698,120]
[402375660,1768669805311,-331.0,0.00024737,120]
[402375661,1768669805339,-234.0,0.00024757,120]
[402375662,1768669805368,-644.0,0.00024866,120]
[402375663,1768669805397,-386.0,0.00024866,120]
[402375664,1768669805427,-1073.0,0.00024868,120]
[402375665,1768669805456,-165.0,0.00024928,120]
[402375666,1768669805483,-166.0,0.00024928,120]
[402375667,1768669805513,-1478.0,0.00024932,120]
[402375668,1768669805543,-200.0,0.00024972,120]
[402375669,1768669805578,-1000.0,0.00025,120]
[402375670,1768669805610,-166.0,0.00025717,120]
[402375671,1768669805639,-331.0,0.00025974,120]
[402375672,1768669805667,-234.0,0.00025995,120]
[402375673,1768669805696,-747.33247623,0.00026,120]
[402375674,1768669805726,-1000.0,0.00026,120]
[402375675,1768669805757,-200.0,0.00026063,120]
[402375676,1768669805791,-386.0,0.00026109,120]
[402375677,1768669805822,-165.0,0.00026174,120]
[402375678,1768669805852,-166.0,0.00026174,120]
[402375679,1768669805881,-200.0,0.00026188,120]
[402375680,1768669805911,-200.0,0.00026371,120]
[402375681,1768669805941,-200.0,0.00026955,120]
[402375682,1768669805968,-200.0,0.00027,120]
[402375683,1768669805996,-249.47305,0.00027,120]
[402375684,1768669806024,-1000.0,0.00027,120]
[402375685,1768669806052,-1476.0701043,0.00027,120]
[402375686,1768669806079,-1000.0,0.00027,120]
[402375687,1768669806107,-2000.0,0.00027,120]
[402375688,1768669806136,-2000.0,0.00027,120]
[402375689,1768669806179,-200.0,0.00027095,120]
[402375690,1768669806234,-1113.89,0.000271,120]
[402375691,1768669806288,-200.0,0.00027286,120]
[402375692,1768669806344,-234.0,0.00027295,120]
[402375693,1768669806397,-389.87742339,0.0002738,120]
[402375694,1768669806452,-158.0,0.0002739,120]
[402375695,1768669806495,-2017.99508923,0.0002739,120]
[402375696,1768669806523,-510.56500205,0.00027397,120]
[402375697,1768669806553,-720.0,0.00027397,120]
[402375698,1768669806581,-500.0,0.00027397,120]
[402375699,1768669815288,-1000.0,0.00010022,2]
[402375756,1768669837848,-4000.0,0.00010022,2]
[402375758,1768669837859,-300.0,0.00010123,2]
[402375760,1768669837869,-300.0,0.00010123,2]
[402375762,1768669837878,-1165.08329667,0.00010123,2]
[402375764,1768669837888,-34.91670333,0.00010123,2]
[402375766,1768669837898,-300.0,0.00010123,2]
[402375768,1768669837907,-562.0,0.00010123,2]
[402375770,1768669837917,-243.64662713,0.00010124,2]
[402375772,1768669837926,-500.0,0.00010124,2]
[402375774,1768669837936,-500.0,0.00010124,2]
[402375776,1768669837945,-500.0,0.00010124,2]
[402375778,1768669837955,-500.0,0.00010124,2]
[402375780,1768669837964,-500.0,0.00010124,2]
[402375782,1768669837973,-500.0,0.00010124,2]
[402375784,1768669837982,-50000.0,0.00010125,2]
[402375786,1768669837991,-154.87231411,0.00010125,2]
[402375788,1768669838000,-500.0,0.00010125,2]
[402375790,1768669838009,-150.32930833,0.00010125,2]
[402375792,1768669838018,-500.0,0.00010125,2]
[402375794,1768669838027,-500.0,0.00010125,2]
[402375796,1768669838036,-500.0,0.00010125,2]
[402375798,1768669838046,-500.0,0.00010261,2]
[402375800,1768669838055,-604.40863637,0.00010261,2]
[402375802,1768669838064,-500.0,0.00010261,2]
[402375804,1768669838075,-764.0,0.00010261,2]
[402375806,1768669838084,-500.0,0.00010261,2]
[402375808,1768669838093,-500.31756629,0.00010261,2]
[402375810,1768669838104,-500.0,0.00010261,2]
[402375812,1768669838115,-500.0,0.00010261,2]
[402375814,1768669838124,-500.0,0.00010261,2]
[402375816,1768669838133,-500.0,0.00010261,2]
[402375818,1768669838142,-500.0,0.00010262,2]
[402375820,1768669838153,-500.0,0.00010262,2]
[402375822,1768669838162,-500.0,0.00010262,2]
[402375824,1768669838172,-500.0,0.00010262,2]
[402375826,1768669838181,-421.79,0.00010397,2]
[402375828,1768669838190,-500.0,0.00010397,2]
[402375830,1768669838200,-500.0,0.00010397,2]
[402375832,1768669838210,-500.0,0.00010397,2]
[402375834,1768669838219,-500.0,0.00010397,2]
[402375836,1768669838229,-500.0,0.00010397,2]
[402375838,1768669838238,-500.0,0.00010397,2]
[402375840,1768669838248,-500.0,0.00010397,2]
[402375842,1768669838257,-500.0,0.00010397,2]
[402375844,1768669838267,-500.0,0.00010397,2]
[402375846,1768669838276,-500.0,0.00010397,2]
[402375848,1768669838286,-500.0,0.00010397,2]
[402375850,1768669838295,-500.0,0.00010397,2]
[402375852,1768669838305,-500.0,0.00010397,2]
[402375854,1768669838315,-500.0,0.00010397,2]
[402375856,1768669838325,-500.0,0.00010397,2]
[402375858,1768669838334,-500.0,0.00010397,2]
[402375860,1768669838343,-500.0,0.00010397,2]
[402375862,1768669838354,-500.0,0.00010397,2]
[402375864,1768669838364,-500.0,0.00010397,2]
[402375866,1768669838374,-500.0,0.00010397,2]
[402375868,1768669838383,-500.0,0.00010397,2]
[402375870,1768669838392,-500.0,0.00010397,2]
[402375871,1768669838402,-339.22897355,0.00010397,2]
[402375872,1768669838411,-500.0,0.00010397,2]
[402375873,1768669838419,-500.0,0.00010397,2]
[402375874,1768669838429,-500.0,0.00010397,2]
[402375875,1768669838438,-500.0,0.00010397,2]
[402375876,1768669838446,-500.0,0.00010397,2]
[402375877,1768669838455,-500.0,0.00010397,2]
[402375878,1768669838464,-500.0,0.00010397,2]
[402375879,1768669838473,-500.0,0.00010397,2]
[402375880,1768669838483,-500.0,0.00010397,2]
[402375881,1768669838493,-500.0,0.00010397,2]
[402375882,1768669838503,-500.0,0.00010397,2]
[402375883,1768669838512,-500.0,0.00010397,2]
[402375884,1768669838521,-500.0,0.00010397,2]
[402375885,1768669838530,-500.0,0.00010397,2]
[402375886,1768669838539,-500.0,0.00010397,2]
[402375887,1768669838548,-500.0,0.00010397,2]
[402375888,1768669838566,-500.0,0.00010397,2]
[402375889,1768669838579,-500.0,0.00010397,2]
[402375890,1768669838588,-500.0,0.00010397,2]
[402375891,1768669838596,-500.0,0.00010397,2]
[402375892,1768669838606,-500.0,0.00010397,2]
[402375893,1768669838615,-500.0,0.00010397,2]
[402375894,1768669838624,-500.0,0.00010397,2]
[402375895,1768669838633,-500.0,0.00010397,2]
[402375896,1768669838643,-500.0,0.00010397,2]
[402375897,1768669838651,-500.0,0.00010397,2]
[402375898,1768669838660,-500.0,0.00010397,2]
[402375899,1768669838669,-500.0,0.00010397,2]
[402375900,1768669838678,-500.0,0.00010397,2]
[402375901,1768669838687,-500.0,0.00010397,2]
[402375902,1768669838695,-500.0,0.00010397,2]
[402375903,1768669838705,-500.0,0.00010397,2]
[402375904,1768669838715,-500.0,0.00010397,2]
[402375906,1768669838725,-500.0,0.00010397,2]
[402375907,1768669838733,-500.0,0.00010397,2]
[402375909,1768669838743,-500.0,0.00010397,2]
[402375911,1768669838753,-550.0,0.00010397,2]
[402375913,1768669838763,-500.0,0.00010397,2]
[402375915,1768669838774,-500.0,0.00010397,2]
[402375917,1768669838783,-500.0,0.00010397,2]
[402375919,1768669838793,-500.0,0.00010397,2]
[402375921,1768669838802,-500.0,0.00010397,2]
[402375923,1768669838812,-500.0,0.00010397,2]
[402375925,1768669838822,-500.0,0.00010397,2]
[402375927,1768669838831,-650.0,0.00010397,2]
[402375929,1768669838841,-500.0,0.00010398,2]
[402375931,1768669838851,-500.0,0.00010398,2]
[402375933,1768669838862,-764.0,0.00010398,2]
[402375935,1768669838871,-500.0,0.00010398,2]
[402375937,1768669838882,-500.0,0.00010398,2]
[402375939,1768669838891,-200.0,0.00010398,2]
[402375941,1768669838902,-422.56693032,0.00010398,2]
[402375943,1768669838911,-500.0,0.00010398,2]
[402375945,1768669838921,-500.0,0.00010398,2]
[402375947,1768669838932,-500.0,0.00010398,2]
[402375949,1768669838942,-500.0,0.00010398,2]
[402375951,1768669838952,-500.0,0.00010398,2]
[402375953,1768669838964,-500.0,0.00010398,2]
[402375955,1768669838974,-500.0,0.00010398,2]
[402375957,1768669838984,-500.0,0.00010398,2]
[402375959,1768669838994,-500.0,0.00010398,2]
[402375961,1768669839004,-500.0,0.00010398,2]
[402375963,1768669839013,-500.0,0.00010398,2]
[402375965,1768669839023,-500.0,0.00010398,2]
[402375967,1768669839034,-500.0,0.00010398,2]
[402375969,1768669839043,-500.0,0.00010398,2]
[402375971,1768669839052,-500.0,0.00010398,2]
[402375973,1768669839063,-500.0,0.00010398,2]
[402375975,1768669839072,-500.0,0.00010398,2]
[402375977,1768669839082,-500.0,0.00010398,2]
[402375979,1768669839091,-500.0,0.00010398,2]
[402375981,1768669839101,-500.0,0.00010398,2]
[402375983,1768669839111,-500.0,0.00010398,2]
[402375985,1768669839121,-500.0,0.00010398,2]
[402375987,1768669839131,-500.0,0.00010398,2]
[402376015,1768669839390,-500.0,0.00010398,2]
[402376017,1768669839400,-500.0,0.00010398,2]
[402376019,1768669839409,-500.0,0.00010398,2]
[402376022,1768669839419,-500.0,0.00010398,2]
[402376024,1768669839428,-500.0,0.00010398,2]
[402376026,1768669839437,-500.0,0.00010398,2]
[402376028,1768669839446,-500.0,0.00010398,2]
[402376030,1768669839455,-500.0,0.00010398,2]
[402376032,1768669839465,-505.97799105,0.00010398,2]
[402376034,1768669839474,-500.0,0.00010398,2]
[402376036,1768669839483,-500.0,0.00010398,2]
[402376038,1768669839493,-500.0,0.00010398,2]
[402376040,1768669839502,-500.0,0.00010398,2]
[402376042,1768669839512,-500.0,0.00010398,2]
[402376045,1768669839521,-500.0,0.00010398,2]
[402376047,1768669839531,-500.0,0.00010398,2]
[402376049,1768669839539,-500.0,0.00010398,2]
[402376051,1768669839548,-500.0,0.00010398,2]
[402376053,1768669839559,-500.0,0.00010398,2]
[402376055,1768669839570,-500.0,0.00010398,2]
[402376057,1768669839579,-500.0,0.00010398,2]
[402376059,1768669839588,-500.0,0.00010398,2]
[402376061,1768669839597,-200.0,0.00010398,2]
[402376064,1768669839609,-500.0,0.00010398,2]
[402376066,1768669839618,-500.0,0.00010398,2]
[402376068,1768669839631,-500.0,0.00010398,2]
[402376070,1768669839641,-500.0,0.00010398,2]
[402376071,1768669839650,-500.0,0.00010398,2]
[402376073,1768669839660,-500.0,0.00010398,2]
[402376075,1768669839670,-500.0,0.00010398,2]
[402376077,1768669839679,-500.0,0.00010398,2]
[402376079,1768669839688,-500.0,0.00010398,2]
[402376081,1768669839697,-577.42413643,0.00010398,2]
[402376083,1768669839707,-500.0,0.00010398,2]
[402376085,1768669839716,-500.0,0.00010398,2]
[402376088,1768669839725,-500.0,0.00010398,2]
[402376089,1768669839735,-500.0,0.00010398,2]
[402376091,1768669839744,-500.0,0.00010398,2]
[402376093,1768669839753,-500.0,0.00010398,2]
[402376095,1768669839763,-500.0,0.00010398,2]
[402376097,1768669839772,-500.0,0.00010398,2]
[402376099,1768669839782,-500.0,0.00010398,2]
[402376102,1768669839791,-500.0,0.00010398,2]
[402376103,1768669839800,-500.0,0.00010398,2]
[402376105,1768669839810,-500.0,0.00010398,2]
[402376107,1768669839820,-500.0,0.00010398,2]
[402376109,1768669839829,-500.0,0.00010398,2]
[402376111,1768669839838,-500.0,0.00010398,2]
[402376113,1768669839847,-500.0,0.00010398,2]
[402376115,1768669839856,-500.0,0.00010398,2]
[402376117,1768669839866,-500.0,0.00010398,2]
[402376119,1768669839875,-500.0,0.00010398,2]
[402376121,1768669839885,-500.0,0.00010398,2]
[402376123,1768669839894,-500.0,0.00010398,2]
[402376125,1768669839903,-500.0,0.00010398,2]
[402376127,1768669839913,-207.01,0.00010398,2]
[402376129,1768669839923,-500.0,0.00010398,2]
[402376131,1768669839932,-500.0,0.00010398,2]
[402376133,1768669839942,-500.0,0.00010398,2]
[402376135,1768669839951,-561.11819561,0.00010398,2]
[402376137,1768669839961,-500.0,0.00010398,2]
[402376139,1768669839971,-500.0,0.00010398,2]
[402376141,1768669839980,-500.0,0.00010398,2]
[402376143,1768669839989,-157.12404531,0.00010398,2]
[402376145,1768669839999,-500.0,0.00010399,2]
[402376147,1768669840008,-250.19066167,0.00010399,2]
[402376149,1768669840017,-333.25191596,0.00010399,2]
[402376151,1768669840027,-500.0,0.00010399,2]
[402376153,1768669840036,-500.0,0.00010399,2]
[402376155,1768669840045,-190.47763541,0.00010399,2]
[402376157,1768669840054,-150.70214574,0.00010399,2]
[402376159,1768669840063,-500.0,0.00010399,2]
[402376162,1768669840072,-500.0,0.00010399,2]
[402376163,1768669840082,-500.0,0.00010399,2]
[402376165,1768669840091,-500.0,0.00010399,2]
[402376167,1768669840100,-500.0,0.00010399,2]
[402376169,1768669840109,-500.0,0.00010399,2]
[402376171,1768669840119,-500.0,0.00010399,2]
[402376173,1768669840128,-500.0,0.00010399,2]
[402376175,1768669840137,-500.0,0.00010399,2]
[402376177,1768669840146,-500.0,0.00010399,2]
[402376180,1768669840156,-500.0,0.00010399,2]
[402376182,1768669840165,-500.0,0.00010399,2]
[402376183,1768669840174,-500.0,0.00010399,2]
[402376185,1768669840183,-500.0,0.00010399,2]
[402376187,1768669840193,-500.0,0.00010399,2]
[402376190,1768669840203,-500.0,0.00010399,2]
[402376191,1768669840212,-500.0,0.00010399,2]
[402376193,1768669840221,-500.0,0.00010399,2]
[402376195,1768669840230,-500.0,0.00010399,2]
[402376197,1768669840239,-500.0,0.00010399,2]
[402376200,1768669840249,-500.0,0.00010399,2]
[402376202,1768669840258,-500.0,0.00010399,2]
[402376204,1768669840268,-500.0,0.00010399,2]
[402376206,1768669840277,-500.0,0.00010399,2]
[402376207,1768669840287,-500.0,0.00010399,2]
[402376209,1768669840296,-500.0,0.00010399,2]
[402376211,1768669840306,-500.0,0.00010399,2]
[402376214,1768669840315,-500.0,0.00010399,2]
[402376215,1768669840324,-500.0,0.00010399,2]
[402376217,1768669840333,-500.0,0.00010399,2]
[402376219,1768669840342,-500.0,0.00010399,2]
[402376220,1768669840351,-500.0,0.00010399,2]
[402376222,1768669840360,-221.46166529,0.00010399,2]
[402376223,1768669840369,-500.0,0.00010399,2]
[402376225,1768669840379,-500.0,0.00010399,2]
[402376227,1768669840389,-500.0,0.00010399,2]
[402376228,1768669840398,-383.418,0.00010399,2]
[402376230,1768669840407,-500.0,0.000104,2]
[402376231,1768669840416,-500.0,0.000104,2]
[402376233,1768669840425,-500.0,0.000104,2]
[402376235,1768669840435,-500.0,0.000104,2]
[402376236,1768669840444,-500.0,0.000104,2]
[402376238,1768669840453,-500.0,0.000104,2]
[402376240,1768669840462,-500.0,0.000104,2]
[402376241,1768669840482,-501.7604766,0.000104,2]
[402376243,1768669840492,-500.4887792,0.000104,2]
[402376244,1768669840501,-500.0,0.000104,2]
[402376246,1768669840511,-929.0582887,0.000104,2]
[402376248,1768669840521,-500.0,0.000104,2]
[402376249,1768669840531,-500.0,0.000104,2]
[402376251,1768669840541,-656.47426594,0.000104,2]
[402376252,1768669840550,-500.0,0.000104,2]
[402376254,1768669840563,-929.0582887,0.000104,2]
[402376256,1768669840573,-500.0,0.000104,2]
[402376257,1768669840583,-500.0,0.000104,2]
[402376259,1768669840593,-500.0,0.000104,2]
[402376261,1768669840603,-874.71870196,0.000104,2]
[402376262,1768669840612,-500.0,0.000104,2]
[402376264,1768669840622,-647.52124845,0.000104,2]
[402376266,1768669840632,-500.0,0.00010535,2]
[402376267,1768669840643,-454.18892172,0.00010535,2]
[402376269,1768669840653,-764.0,0.00010535,2]
[402376270,1768669840663,-500.0,0.00010535,2]
[402376272,1768669840672,-500.0,0.00010535,2]
[402376274,1768669840682,-500.0,0.00010535,2]
[402376275,1768669840691,-500.0,0.00010535,2]
[402376277,1768669840702,-419.99180641,0.00010536,2]
[402376279,1768669840711,-215.80293607,0.00010536,2]
[402376280,1768669840721,-500.0,0.00010536,2]
[402376282,1768669840731,-150.88569815,0.00010536,2]
[402376284,1768669840741,-500.0,0.00010672,2]
[402376285,1768669840751,-764.0,0.00010672,2]
[402376287,1768669840761,-556.00368609,0.00010672,2]
[402376288,1768669840770,-500.0,0.00010672,2]
[402376290,1768669840780,-524.59534775,0.00010672,2]
[402376292,1768669840790,-207.01,0.00010672,2]